fUST/lending_fUST_20240121
["ID","MTS","AMOUNT","RATE_DAILY","PERIOD"]
[312361913,1705831848055,-390.67432736,0.00030136,2]
[312361914,1705831848069,-500.0,0.00030136,2]
[312361915,1705831848078,-500.0,0.00030136,2]
[312361916,1705831848088,-501.52704151,0.00030136,2]
[312361917,1705831848097,-1000.0,0.00030136,2]
[312361918,1705831848107,-2966.89,0.00030136,2]
[312361919,1705831848116,-500.0,0.00030136,2]
[312361920,1705831848126,-500.31,0.00030136,2]
[312361921,1705831848135,-633.68,0.00030136,2]
[312361922,1705831848145,-735.3,0.00030136,2]
[312361923,1705831848154,-500.0,0.00030136,2]
[312361924,1705831848163,-500.0,0.00030136,2]
[312361925,1705831848172,-501.78466659,0.00030136,2]
[312361926,1705831848181,-500.0,0.00030136,2]
[312361927,1705831848190,-501.32256975,0.00030136,2]
[312361928,1705831848199,-500.0,0.00030136,2]
[312361929,1705831848209,-500.0,0.00030136,2]
[312361930,1705831848218,-1296.72,0.00030136,2]
[312361931,1705831848227,-500.0,0.00030136,2]
[312361932,1705831848236,-581.40000945,0.00030136,2]
[312361933,1705831848244,-859.12,0.00030136,2]
[312361934,1705831848253,-500.0,0.00030136,2]
[312361935,1705831848263,-500.0,0.00030136,2]
[312361936,1705831848271,-501.77316946,0.00030136,2]
[312361937,1705831848282,-1522.55,0.00030136,2]
[312361938,1705831848291,-500.0,0.00030136,2]
[312361939,1705831848300,-500.0,0.00030136,2]
[312361940,1705831848309,-500.0,0.00030136,2]
[312361941,1705831848318,-500.0,0.00030136,2]
[312361942,1705831848327,-500.0,0.00030136,2]
[312361943,1705831848336,-538.03317882,0.00030136,2]
[312361944,1705831848345,-500.0,0.00030136,2]
[312361945,1705831848354,-500.0,0.00030136,2]
[312361946,1705831848363,-300.73816161,0.00030136,2]
[312361947,1705831848372,-500.0,0.00030136,2]
[312361948,1705831848381,-500.0,0.00030136,2]
[312361949,1705831848391,-500.29208664,0.00030136,2]
[312361950,1705831848402,-500.0,0.00030136,2]
[312361951,1705831848411,-500.0,0.00030136,2]
[312361952,1705831848421,-500.0,0.00030136,2]
[312361953,1705831848430,-500.0,0.00030136,2]
[312361954,1705831848439,-503.24194096,0.00030136,2]
[312361955,1705831848448,-500.0,0.00030136,2]
[312361956,1705831848458,-500.0,0.00030136,2]
[312361957,1705831848468,-500.0,0.00030136,2]
[312361958,1705831848479,-500.0,0.00030136,2]
[312361959,1705831848490,-500.0,0.00030136,2]
[312361960,1705831848501,-500.0,0.00030136,2]
[312361961,1705831848511,-1339.82,0.00030136,2]
[312361962,1705831848520,-500.85399954,0.00030136,2]
[312361963,1705831848529,-150.0,0.00030136,2]
[312361964,1705831848538,-500.0,0.00030136,2]
[312361965,1705831848547,-500.85348377,0.00030136,2]
[312361966,1705831848556,-500.0,0.00030136,2]
[312361967,1705831848566,-705.48,0.00030136,2]
[312361968,1705831848576,-500.0,0.00030136,2]
[312361969,1705831848587,-500.0,0.00030136,2]
[312361970,1705831848596,-500.0,0.00030136,2]
[312361971,1705831848605,-500.0,0.00030136,2]
[312361972,1705831848614,-500.0,0.00030136,2]
[312361973,1705831848623,-679.1,0.00030136,2]
[312361974,1705831848633,-848.49,0.00030136,2]
[312361975,1705831848642,-500.0,0.00030136,2]
[312361976,1705831848652,-500.0,0.00030136,2]
[312361977,1705831848664,-501.49602513,0.00030136,2]
[312361978,1705831848673,-500.0,0.00030136,2]
[312361979,1705831848682,-500.0,0.00030136,2]
[312361980,1705831848692,-500.0,0.00030136,2]
[312361981,1705831848701,-1273.02,0.00030136,2]
[312361982,1705831848712,-500.0,0.00030136,2]
[312361983,1705831848722,-9222.15,0.00030136,2]
[312361984,1705831848731,-334.31172185,0.00030136,2]
[312361985,1705831848740,-500.0,0.00030136,2]
[312361986,1705831848750,-500.0,0.00030136,2]
[312361987,1705831848760,-500.0,0.00030136,2]
[312361988,1705831848770,-500.0,0.00030136,2]
[312361989,1705831848780,-500.16510899,0.00030136,2]
[312361990,1705831848789,-500.0,0.00030136,2]
[312361991,1705831848798,-3282.85,0.00030136,2]
[312361992,1705831848809,-27910.08,0.00030136,2]
[312361993,1705831848818,-500.0,0.00030136,2]
[312361994,1705831848827,-500.0,0.00030136,2]
[312361995,1705831848837,-500.0,0.00030136,2]
[312361996,1705831848847,-500.0,0.00030136,2]
[312361997,1705831848857,-500.0,0.00030136,2]
[312361998,1705831848866,-500.0,0.00030136,2]
[312361999,1705831848875,-500.0,0.00030136,2]
[312362000,1705831848885,-500.0,0.00030136,2]
[312362001,1705831848895,-506.82,0.00030136,2]
[312362002,1705831848904,-500.0,0.00030136,2]
[312362003,1705831848914,-544.8,0.00030136,2]
[312362004,1705831848923,-500.0,0.00030136,2]
[312362005,1705831848932,-470.12320237,0.00030136,2]
[312362006,1705831848941,-500.0,0.00030136,2]
[312362007,1705831848950,-500.0,0.00030136,2]
[312362008,1705831848959,-500.0,0.00030136,2]
[312362009,1705831848969,-602.88813373,0.00030136,2]
[312362010,1705831848978,-500.0,0.00030136,2]
[312362011,1705831848988,-500.0,0.00030136,2]
[312362012,1705831848997,-500.0,0.00030136,2]
[312362013,1705831849006,-1357.4,0.00030136,2]
[312362014,1705831849015,-2407.24,0.00030136,2]
[312362015,1705831849024,-501.20678508,0.00030136,2]
[312362016,1705831849033,-500.0,0.00030136,2]
[312362017,1705831849043,-500.0,0.00030136,2]
[312362018,1705831849052,-1268.28,0.00030136,2]
[312362019,1705831849063,-500.0,0.00030136,2]
[312362020,1705831849072,-272.02965758,0.00030136,2]
[312362021,1705831849082,-500.0,0.00030136,2]
[312362022,1705831849091,-504.73932629,0.00030136,2]
[312362023,1705831849100,-500.0,0.00030136,2]
[312362024,1705831849110,-500.0,0.00030136,2]
[312362025,1705831849119,-500.0,0.00030136,2]
[312362026,1705831849128,-300.67494007,0.00030136,2]
[312362027,1705831849138,-1267.98,0.00030136,2]
[312362028,1705831849147,-524.23336477,0.00030136,2]
[312362029,1705831849156,-500.0,0.00030136,2]
[312362030,1705831849166,-500.0,0.00030136,2]
[312362031,1705831849175,-8991.16,0.00030136,2]
[312362032,1705831849184,-500.0,0.00030136,2]
[312362033,1705831849193,-500.0,0.00030136,2]
[312362034,1705831849202,-500.0,0.00030136,2]
[312362035,1705831849211,-500.0,0.00030136,2]
[312362036,1705831849222,-500.0,0.00030136,2]
[312362037,1705831849233,-6246.55,0.00030136,2]
[312362038,1705831849242,-724.54,0.00030136,2]
[312362039,1705831849250,-500.0,0.00030136,2]
[312362040,1705831849259,-500.3997051,0.00030136,2]
[312362041,1705831849269,-8645.91,0.00030136,2]
[312362042,1705831849278,-500.0,0.00030136,2]
[312362043,1705831849287,-500.0,0.00030136,2]
[312362044,1705831849296,-533.55959299,0.00030136,2]
[312362045,1705831849305,-2208.26,0.00030136,2]
[312362046,1705831849314,-500.0,0.00030136,2]
[312362047,1705831849323,-500.0,0.00030136,2]
[312362048,1705831849332,-500.0,0.00030136,2]
[312362049,1705831849341,-1000.0,0.00030136,2]
[312362050,1705831849351,-500.0,0.00030136,2]
[312362051,1705831849361,-500.0,0.00030136,2]
[312362052,1705831849369,-500.0,0.00030136,2]
[312362053,1705831849380,-500.67327794,0.00030136,2]
[312362054,1705831849390,-1553.63,0.00030136,2]
[312362055,1705831849399,-501.10340825,0.00030136,2]
[312362056,1705831849410,-168.30069407,0.00030136,2]
[312362057,1705831849418,-307.26826808,0.00030136,2]
[312362058,1705831849428,-500.0,0.00030136,2]
[312362059,1705831849437,-500.0,0.00030136,2]
[312362060,1705831849446,-833.1,0.00030136,2]
[312362061,1705831849455,-500.0,0.00030136,2]
[312362062,1705831849465,-500.0,0.00030136,2]
[312362063,1705831849474,-500.0,0.00030136,2]
[312362064,1705831849483,-500.0,0.00030136,2]
[312362065,1705831849493,-15825.79,0.00030136,2]
[312362066,1705831849503,-500.0,0.00030136,2]
[312362067,1705831849513,-500.38009396,0.00030136,2]
[312362068,1705831849522,-502.66377343,0.00030136,2]
[312362069,1705831849532,-500.0,0.00030136,2]
[312362070,1705831849541,-500.0,0.00030136,2]
[312362071,1705831849552,-500.0,0.00030136,2]
[312362072,1705831849562,-356.08272014,0.00030136,2]
[312362073,1705831849574,-1024.7,0.00030136,2]
[312362074,1705831849584,-500.0,0.00030136,2]
[312362075,1705831849594,-1364.99,0.00030136,2]
[312362076,1705831849605,-500.0,0.00030136,2]
[312362077,1705831849615,-500.0,0.00030136,2]
[312362078,1705831849625,-500.0,0.00030136,2]
[312362079,1705831849634,-1854.73,0.00030136,2]
[312362080,1705831849643,-530.54853216,0.00030136,2]
[312362081,1705831849653,-500.0,0.00030136,2]
[312362082,1705831849663,-220.0,0.00030136,2]
[312362083,1705831849673,-706.41,0.00030136,2]
[312362084,1705831849789,-2486.4,0.00030136,2]
[312362085,1705831849799,-473.69115438,0.00030136,2]
[312362086,1705831849809,-521.26,0.00030136,2]
[312362087,1705831849818,-500.0,0.00030136,2]
[312362088,1705831849827,-500.0,0.00030136,2]
[312362089,1705831849837,-500.0,0.00030136,2]
[312362090,1705831849846,-500.0,0.00030136,2]
[312362091,1705831849855,-813.09,0.00030136,2]
[312362092,1705831849865,-1553.93,0.00030136,2]
[312362093,1705831849874,-246.16646405,0.00030136,2]
[312362094,1705831849883,-775.2,0.00030136,2]
[312362095,1705831849892,-840.13,0.00030136,2]
[312362096,1705831849902,-500.0,0.00030136,2]
[312362097,1705831849911,-213.03649456,0.00030136,2]
[312362098,1705831849920,-1000.0,0.00030136,2]
[312362099,1705831849929,-500.59354776,0.00030136,2]
[312362100,1705831849939,-702.19,0.00030136,2]
[312362101,1705831849948,-500.0,0.00030136,2]
[312362102,1705831849957,-500.0,0.00030136,2]
[312362103,1705831849967,-913.25,0.00030136,2]
[312362104,1705831849976,-500.0,0.00030136,2]
[312362105,1705831849985,-500.0,0.00030136,2]
[312362106,1705831849994,-500.0,0.00030136,2]
[312362107,1705831850003,-357.12428259,0.00030136,2]
[312362108,1705831850012,-2053.12,0.00030136,2]
[312362109,1705831850022,-504.58949916,0.00030136,2]
[312362110,1705831850031,-667.93,0.00030136,2]
[312362111,1705831850041,-197.51931801,0.00030136,2]
[312362112,1705831850051,-500.0,0.00030136,2]
[312362113,1705831850062,-500.0,0.00030136,2]
[312362114,1705831850072,-500.0,0.00030136,2]
[312362115,1705831850081,-500.0,0.00030136,2]
[312362116,1705831850091,-500.0,0.00030136,2]
[312362117,1705831850100,-500.0,0.00030136,2]
[312362118,1705831850110,-500.0,0.00030136,2]
[312362119,1705831850120,-511.20407066,0.00030136,2]
[312362120,1705831850130,-500.0,0.00030136,2]
[312362121,1705831850139,-500.0,0.00030136,2]
[312362122,1705831850150,-503.03597307,0.00030136,2]
[312362123,1705831850159,-2063.46,0.00030136,2]
[312362124,1705831850169,-501.87748932,0.00030136,2]
[312362125,1705831850178,-500.0,0.00030136,2]
[312362126,1705831850187,-663.47,0.00030136,2]
[312362127,1705831850197,-500.0,0.00030136,2]
[312362128,1705831850207,-500.0,0.00030136,2]
[312362129,1705831850216,-992.49,0.00030136,2]
[312362130,1705831850225,-569.94,0.00030136,2]
[312362131,1705831850235,-500.0,0.00030136,2]
[312362132,1705831850244,-6497.1,0.00030136,2]
[312362133,1705831850254,-41856.1398373,0.00030137,2]
[312362134,1705831850263,-153.52997654,0.0003032,2]
[312362135,1705831850273,-151.0,0.00030321,2]
[312362136,1705831850283,-150.0,0.00030321,2]
[312362137,1705831850292,-243.554,0.00030321,2]
[312362138,1705831850301,-543.40223345,0.00030409,2]
[312362139,1705831850311,-500.0,0.00030409,4]
[312362140,1705831850320,-500.0,0.00030409,4]
[312362141,1705831850329,-500.0,0.00030409,4]
[312362142,1705831850339,-500.0,0.00030409,4]
[312362143,1705831850348,-500.0,0.00030409,4]
[312362144,1705831850357,-500.0,0.00030409,4]
[312362145,1705831850366,-500.0,0.00030409,4]
[312362146,1705831850375,-214.54019858,0.00030409,4]
[312362147,1705831850385,-500.0,0.00030409,4]
[312362148,1705831850394,-408.01532102,0.00030409,4]
[312362149,1705831850404,-500.0,0.00030409,4]
[312362150,1705831850413,-500.0,0.00030409,4]
[312362151,1705831850422,-551.15190376,0.00030409,4]
[312362152,1705831850431,-544.65669933,0.00030409,4]
[312362153,1705831850441,-500.0,0.00030409,4]
[312362154,1705831850450,-300.10463748,0.00030409,4]
[312362155,1705831850460,-500.0,0.00030409,4]
[312362156,1705831850469,-500.0,0.00030409,4]
[312362157,1705831850479,-500.0,0.00030409,4]
[312362158,1705831850488,-500.0,0.00030409,4]
[312362159,1705831850498,-500.0,0.00030409,4]
[312362160,1705831850507,-500.0,0.00030409,4]
[312362161,1705831850516,-500.0,0.00030409,4]
[312362162,1705831850525,-460.56897215,0.00030409,4]
[312362163,1705831850534,-500.0,0.00030409,4]
[312362164,1705831850543,-217.36089337,0.00030409,2]
[312362165,1705831850553,-500.0,0.00030409,2]
[312362166,1705831850562,-500.0,0.00030409,2]
[312362167,1705831850572,-500.0,0.00030409,2]
[312362168,1705831850581,-202.60431436,0.00030409,2]
[312362169,1705831850589,-170.05,0.00030409,2]
[312362170,1705831850599,-500.0,0.0003041,2]
[312362171,1705831850609,-500.0,0.0003041,2]
[312362172,1705831850618,-500.0,0.0003041,2]
[312362173,1705831850628,-500.0,0.0003041,2]
[312362174,1705831850637,-500.0,0.0003041,2]
[312362175,1705831850647,-500.0,0.0003041,2]
[312362176,1705831850656,-500.0,0.0003041,2]
[312362177,1705831850665,-4150.11484548,0.0003041,4]
[312362178,1705831850675,-500.0,0.0003041,2]
[312362179,1705831850684,-156.67960505,0.0003041,4]
[312362180,1705831850693,-1014.44387761,0.0003041,2]
[312362181,1705831850702,-1161.12480263,0.0003041,2]
[312362182,1705831850711,-500.0,0.0003041,2]
[312362183,1705831850720,-500.0,0.0003041,2]
[312362184,1705831850730,-1178.69,0.0003041,2]
[312362185,1705831850739,-500.0,0.0003041,2]
[312362186,1705831850748,-500.0,0.0003041,2]
[312362187,1705831850757,-500.0,0.0003041,2]
[312362188,1705831850766,-500.0,0.0003041,2]
[312362189,1705831850776,-500.0,0.0003041,2]
[312362190,1705831850785,-500.0,0.0003041,2]
[312362191,1705831850794,-500.0,0.0003041,2]
[312362192,1705831850804,-500.0,0.0003041,2]
[312362193,1705831850813,-500.0,0.0003041,2]
[312362194,1705831850822,-500.0,0.0003041,2]
[312362195,1705831850831,-500.0,0.0003041,2]
[312362196,1705831850841,-500.0,0.0003041,2]
[312362197,1705831850850,-508.70316251,0.0003041,2]
[312362198,1705831850860,-500.0,0.0003041,2]
[312362199,1705831850869,-500.0,0.0003041,2]
[312362200,1705831850879,-1075.83,0.0003041,2]
[312362201,1705831850888,-500.0,0.0003041,2]
[312362202,1705831850898,-1099.43,0.0003041,2]
[312362203,1705831850907,-500.0,0.0003041,2]
[312362204,1705831850917,-500.0,0.0003041,2]
[312362205,1705831850926,-500.0,0.0003041,2]
[312362206,1705831850935,-500.0,0.0003041,2]
[312362207,1705831850945,-500.0,0.0003041,2]
[312362208,1705831850954,-500.0,0.0003041,2]
[312362209,1705831850964,-500.0,0.0003041,2]
[312362210,1705831850973,-473.29545084,0.0003041,2]
[312362211,1705831850983,-500.0,0.0003041,2]
[312362212,1705831850992,-502.32093715,0.0003041,2]
[312362213,1705831851001,-500.0,0.0003041,2]
[312362214,1705831851011,-500.0,0.0003041,2]
[312362215,1705831851020,-500.0,0.0003041,2]
[312362216,1705831851030,-298.60857659,0.0003041,2]
[312362217,1705831851039,-1166.53,0.0003041,2]
[312362218,1705831851049,-768.2,0.0003041,2]
[312362219,1705831851060,-500.0,0.0003041,2]
[312362220,1705831851071,-500.0,0.0003041,2]
[312362221,1705831851080,-500.0,0.0003041,2]
[312362222,1705831851089,-500.0,0.0003041,2]
[312362223,1705831851098,-500.0,0.0003041,2]
[312362224,1705831851109,-500.0,0.0003041,2]
[312362225,1705831851119,-500.0,0.0003041,2]
[312362226,1705831851129,-500.0,0.0003041,2]
[312362227,1705831851139,-500.0,0.0003041,2]
[312362228,1705831851149,-500.0,0.0003041,2]
[312362229,1705831851158,-506.69811154,0.0003041,2]
[312362230,1705831851167,-500.0,0.0003041,2]
[312362231,1705831851176,-500.0,0.0003041,2]
[312362232,1705831851185,-500.0,0.0003041,2]
[312362233,1705831851195,-590.12,0.0003041,2]
[312362234,1705831851204,-500.0,0.0003041,2]
[312362235,1705831851213,-500.0,0.0003041,2]
[312362236,1705831851222,-1000.0,0.0003041,2]
[312362237,1705831851231,-377.5790184,0.0003041,2]
[312362238,1705831851240,-630.44,0.0003041,2]
[312362239,1705831851249,-500.0,0.0003041,2]
[312362240,1705831851259,-500.0,0.0003041,2]
[312362241,1705831851268,-200.0,0.0003041,2]
[312362242,1705831851277,-512.54465079,0.0003041,2]
[312362243,1705831851287,-527.82,0.0003041,2]
[312362244,1705831851296,-623.93,0.0003041,2]
[312362245,1705831851305,-517.72390546,0.0003041,2]
[312362246,1705831851314,-656.62,0.0003041,2]
[312362247,1705831851322,-500.0,0.0003041,2]
[312362248,1705831851332,-500.0,0.0003041,2]
[312362249,1705831851341,-500.0,0.0003041,2]
[312362250,1705831851349,-500.0,0.0003041,2]
[312362251,1705831851357,-500.0,0.0003041,2]
[312362252,1705831851366,-500.0,0.0003041,2]
[312362253,1705831851375,-614.55,0.0003041,2]
[312362254,1705831851384,-500.0,0.0003041,2]
[312362255,1705831851393,-500.0,0.0003041,2]
[312362256,1705831851402,-500.0,0.0003041,2]
[312362257,1705831851412,-500.0,0.0003041,2]
[312362258,1705831851421,-500.0,0.0003041,2]
[312362259,1705831851430,-500.0,0.0003041,2]
[312362260,1705831851439,-215.13409114,0.0003041,2]
[312362261,1705831851448,-500.0,0.0003041,2]
[312362262,1705831851457,-500.0,0.0003041,2]
[312362263,1705831851466,-500.0,0.0003041,2]
[312362264,1705831851476,-500.0,0.0003041,2]
[312362265,1705831851485,-500.0,0.0003041,2]
[312362266,1705831851494,-193.39740643,0.0003041,2]
[312362267,1705831851503,-500.0,0.0003041,2]
[312362268,1705831851512,-324.23899013,0.0003041,2]
[312362269,1705831851521,-638.59,0.0003041,2]
[312362270,1705831851531,-1050.99,0.0003041,2]
[312362271,1705831851540,-500.0,0.0003041,2]
[312362272,1705831851549,-500.0,0.0003041,2]
[312362273,1705831851559,-500.0,0.0003041,2]
[312362274,1705831851568,-544.28003768,0.0003041,2]
[312362275,1705831851578,-500.0,0.0003041,2]
[312362276,1705831851587,-500.0,0.0003041,2]
[312362277,1705831851596,-454.40419699,0.0003041,2]
[312362278,1705831851605,-2181.24,0.0003041,2]
[312362279,1705831851614,-661.72,0.0003041,2]
[312362280,1705831851623,-500.0,0.0003041,2]
[312362281,1705831851632,-500.0,0.0003041,2]
[312362282,1705831851641,-500.0,0.0003041,2]
[312362283,1705831851650,-554.16235394,0.0003041,2]
[312362284,1705831851660,-2966.89,0.0003041,2]
[312362285,1705831851670,-500.0,0.0003041,2]
[312362286,1705831851679,-500.31,0.0003041,2]
[312362287,1705831851688,-633.68,0.0003041,2]
[312362288,1705831851698,-735.3,0.0003041,2]
[312362289,1705831851707,-500.0,0.0003041,2]
[312362290,1705831851716,-500.0,0.0003041,2]
[312362291,1705831851726,-500.0,0.0003041,2]
[312362292,1705831851735,-500.0,0.0003041,2]
[312362293,1705831851745,-500.0,0.0003041,2]
[312362294,1705831851754,-1296.72,0.0003041,2]
[312362295,1705831851763,-500.0,0.0003041,2]
[312362296,1705831851772,-859.12,0.0003041,2]
[312362297,1705831851782,-500.0,0.0003041,2]
[312362298,1705831851791,-500.0,0.0003041,2]
[312362299,1705831851801,-1522.55,0.0003041,2]
[312362300,1705831851810,-500.0,0.0003041,2]
[312362301,1705831851819,-500.0,0.0003041,2]
[312362302,1705831851828,-500.0,0.0003041,2]
[312362303,1705831851838,-500.0,0.0003041,2]
[312362304,1705831851847,-610.68850018,0.0003041,2]
[312362305,1705831851856,-500.0,0.0003041,2]
[312362306,1705831851866,-500.0,0.0003041,2]
[312362307,1705831851875,-555.29970225,0.0003041,2]
[312362308,1705831851885,-500.0,0.0003041,2]
[312362309,1705831851894,-500.0,0.0003041,2]
[312362310,1705831851904,-500.0,0.0003041,2]
[312362311,1705831851913,-500.0,0.0003041,2]
[312362312,1705831851922,-500.0,0.0003041,2]
[312362313,1705831851932,-462.70107331,0.0003041,2]
[312362314,1705831851941,-501.70341618,0.0003041,2]
[312362315,1705831851950,-500.0,0.0003041,2]
[312362316,1705831851960,-500.0,0.0003041,2]
[312362317,1705831851969,-1339.82,0.0003041,2]
[312362318,1705831851979,-150.0,0.0003041,2]
[312362319,1705831851988,-500.0,0.0003041,2]
[312362320,1705831851997,-500.0,0.0003041,2]
[312362321,1705831852006,-705.48,0.0003041,2]
[312362322,1705831852015,-500.0,0.0003041,2]
[312362323,1705831852024,-500.0,0.0003041,2]
[312362324,1705831852034,-500.0,0.0003041,2]
[312362325,1705831852043,-500.0,0.0003041,2]
[312362326,1705831852052,-503.93060424,0.0003041,2]
[312362327,1705831852063,-679.1,0.0003041,2]
[312362328,1705831852073,-848.49,0.0003041,2]
[312362329,1705831852082,-500.0,0.0003041,2]
[312362330,1705831852091,-500.0,0.0003041,2]
[312362331,1705831852102,-500.0,0.0003041,2]
[312362332,1705831852112,-500.96958819,0.0003041,2]
[312362333,1705831852121,-500.0,0.0003041,2]
[312362334,1705831852131,-1273.02,0.0003041,2]
[312362335,1705831852142,-500.0,0.0003041,2]
[312362336,1705831852153,-9222.15,0.0003041,2]
[312362337,1705831852163,-500.0,0.0003041,2]
[312362338,1705831852173,-501.1849965,0.0003041,2]
[312362339,1705831852184,-500.0,0.0003041,2]
[312362340,1705831852195,-502.39019566,0.0003041,2]
[312362341,1705831852207,-500.0,0.0003041,2]
[312362342,1705831852217,-3282.85,0.0003041,2]
[312362343,1705831852227,-11431.92423563,0.0003041,2]
[312362344,1705831852486,-2220.3689115,0.0003041,2]
[312362345,1705831883244,150.71364408,0.0003094,30]
[312362346,1705831883292,150.71364408,0.00030322,120]
[312362347,1705831998165,9845.01549845,0.00030322,14]
[312362353,1705832226486,1000.0,0.00031,31]
[312362354,1705832365686,150.72868836,0.00030646,120]
[312362355,1705832469602,500.0,0.00031,30]
[312362356,1705832470079,500.0,0.00031,30]
[312362357,1705832470531,465.44882217,0.00031,30]
[312362379,1705832898581,150.71364408,0.00030812,120]
[312362380,1705832928160,157.88977288,0.00031,7]
[312362395,1705832964088,-211.49658438,0.00022,4]
[312362428,1705833038351,-679.97177576,0.00021997,2]
[312362429,1705833038362,-154.7215013,0.00021998,4]
[312362430,1705833038371,-1293.51070224,0.00021998,2]
[312362431,1705833038381,-44.79735713,0.00022,4]
[312362432,1705833038390,-154.98450155,0.0002729,2]
[312362433,1705833038399,-235.28817496,0.00027924,4]
[312362434,1705833038408,-2467.98611438,0.00027924,5]
[312362435,1705833038417,-557.3229977,0.00027924,5]
[312362436,1705833038427,-150.0,0.0002831,2]
[312362437,1705833038435,-162.812824,0.00028767,2]
[312362438,1705833038445,-2807.0,0.00029955,3]
[312362439,1705833038454,-5000.0,0.00029956,2]
[312362440,1705833038463,-454.28035775,0.0003,2]
[312362441,1705833038476,-244.10022188,0.0003,4]
[312362442,1705833038486,-688.33469937,0.0003,4]
[312362443,1705833038495,-464.55162265,0.00030123,2]
[312362444,1705833038504,-3086.6,0.00030124,3]
[312362445,1705833038515,-2572.16,0.00030124,3]
[312362446,1705833038524,-2143.47,0.00030124,3]
[312362447,1705833038533,-9915.36380901,0.00030125,4]
[312362448,1705833038542,-177.90237609,0.00030132,4]
[312362449,1705833038551,-309.39667417,0.00030134,4]
[312362450,1705833038560,-157.13400969,0.00030134,4]
[312362451,1705833038569,-10739.18533603,0.00030134,4]
[312362452,1705833038578,-294.70821043,0.00030134,4]
[312362453,1705833038587,-347.2235622,0.00030134,4]
[312362454,1705833038596,-2705.10797595,0.00030134,5]
[312362455,1705833038604,-2552.90444044,0.00030134,4]
[312362456,1705833038613,-2523.43765642,0.00030134,4]
[312362457,1705833038622,-2928.89496517,0.00030134,4]
[312362458,1705833038630,-823.86653966,0.00030134,4]
[312362459,1705833038640,-18066.70186855,0.00030134,4]
[312362460,1705833038649,-428.69621823,0.00030135,2]
[312362461,1705833038658,-500.0,0.00030136,2]
[312362462,1705833038667,-500.0,0.00030136,2]
[312362463,1705833038676,-500.0,0.00030136,2]
[312362464,1705833038686,-500.0,0.00030136,2]
[312362465,1705833038695,-500.0,0.00030136,2]
[312362466,1705833038703,-500.0,0.00030136,2]
[312362467,1705833038724,-500.0,0.00030136,2]
[312362468,1705833038734,-500.0,0.00030136,2]
[312362469,1705833038744,-500.0,0.00030136,2]
[312362470,1705833038754,-563.34,0.00030136,2]
[312362471,1705833038763,-500.0,0.00030136,2]
[312362472,1705833038773,-1000.0,0.00030136,2]
[312362473,1705833038782,-500.0,0.00030136,2]
[312362474,1705833038792,-500.0,0.00030136,2]
[312362475,1705833038801,-500.0,0.00030136,2]
[312362476,1705833038811,-500.0,0.00030136,2]
[312362477,1705833038821,-264.95436208,0.00030136,2]
[312362478,1705833038831,-500.0,0.00030136,2]
[312362479,1705833038841,-500.0,0.00030136,2]
[312362480,1705833038853,-500.0,0.00030136,2]
[312362481,1705833038864,-500.0,0.00030136,2]
[312362482,1705833038874,-674.02,0.00030136,2]
[312362483,1705833038884,-606.58,0.00030136,2]
[312362484,1705833038894,-500.0,0.00030136,2]